Department Family,Entity,Date,Expense type,Expense area,Supplier,Transaction number,Amount
BEIS,ACAS,05/04/2022,CONTRACTOR OFF-PAYROLL IN IR35,DELIVERY,ALEXANDER MANN SOLUTIONS LTD,POIN374,3780.36
BEIS,ACAS,05/04/2022,OTHER RESEARCH,STRATEGY,QUANT RESEARCH LTD,POIN375,5700
BEIS,ACAS,05/04/2022,EXTERNAL LEARNING,ODHR,CAMBRIDGE EMPLOYMENT LAW,POIN376,300
BEIS,ACAS,05/04/2022,CONTRACTOR OFF-PAYROLL IN IR35,DELIVERY,ALEXANDER MANN SOLUTIONS LTD,POIN377,2124.97
BEIS,ACAS,05/04/2022,AGENCY STAFF,ODHR,ALEXANDER MANN SOLUTIONS LTD,POIN378,2520.24
BEIS,ACAS,05/04/2022,CONTRACTOR OFF-PAYROLL IN IR35,DELIVERY,ALEXANDER MANN SOLUTIONS LTD,POIN379,1781.04
BEIS,ACAS,01/04/2022,PROFESSIONAL FEES,DDAT,CIO - OFFICIAL LLP,POIN382,34200
BEIS,ACAS,01/04/2022,EXTERNAL LEARNING - CSL,NORTH&MID,KPMG LLP,POIN384,319.33
BEIS,ACAS,01/04/2022,EXTERNAL LEARNING - CSL,NORTH&MID,KPMG LLP,POIN384,59.87
BEIS,ACAS,01/04/2022,MANAGED SERVICE Off-PAYROLL WK,DELIVERY,TISSKI LTD,POIN385,35112
BEIS,ACAS,01/04/2022,MANAGED SERVICE Off-PAYROLL WK,DELIVERY,TISSKI LTD,POIN385,456
BEIS,ACAS,04/04/2022,EVALUATION OF OPS ACTIVITIES,STRATEGY,EMPLOYMENT RESEARCH LTD,POIN386,1502.71
BEIS,ACAS,06/04/2022,EXTERNAL LEARNING - CSL,ODHR,KPMG LLP,POIN387,3589.2
BEIS,ACAS,06/04/2022,EXTERNAL LEARNING,ODHR,IN PROFESSIONAL DEVELOPMENT LTD,POIN388,1860
BEIS,ACAS,07/04/2022,EXTERNAL LEARNING,ODHR,DODS GROUP LTD,POIN389,354
BEIS,ACAS,07/04/2022,CONTRACTOR OFF-PAYROLL IN IR35,DELIVERY,ALEXANDER MANN SOLUTIONS LTD,POIN390,30576.38
BEIS,ACAS,07/04/2022,CONTRACTOR OFF-PAYROLL IN IR35,DELIVERY,ALEXANDER MANN SOLUTIONS LTD,POIN391,2656.21
BEIS,ACAS,07/04/2022,CONTRACTOR OFF-PAYROLL IN IR35,DELIVERY,ALEXANDER MANN SOLUTIONS LTD,POIN392,1619.14
BEIS,ACAS,07/04/2022,CONTRACTOR OFF-PAYROLL IN IR35,DELIVERY,ALEXANDER MANN SOLUTIONS LTD,POIN393,2726.98
BEIS,ACAS,07/04/2022,CONTRACTOR OFF-PAYROLL IN IR35,DELIVERY,ALEXANDER MANN SOLUTIONS LTD,POIN394,3024.29
BEIS,ACAS,07/04/2022,EXTERNAL LEARNING,ODHR,AGILE CENTRE LIMITED,POIN395,834
BEIS,ACAS,08/04/2022,TRAINERS & GUEST SPEAKERS,DELIVERY,THE VIRTUAL TRAINING TEAM LTD,POIN396,2700
BEIS,ACAS,08/04/2022,TRAINERS & GUEST SPEAKERS,DELIVERY,THE VIRTUAL TRAINING TEAM LTD,POIN396,2700
BEIS,ACAS,07/04/2022,CONTRACTOR OFF-PAYROLL IN IR35,DELIVERY,ALEXANDER MANN SOLUTIONS LTD,POIN397,3202.85
BEIS,ACAS,08/04/2022,MANAGED SERVICE Off-PAYROLL WK,DELIVERY,OPENCAST SOFTWARE EUROPE LTD,POIN398,150000
BEIS,ACAS,08/04/2022,MANAGED SERVICE Off-PAYROLL WK,DELIVERY,OPENCAST SOFTWARE EUROPE LTD,POIN398,14455.2
BEIS,ACAS,08/04/2022,MANAGED SERVICE Off-PAYROLL WK,DELIVERY,AXIS 12 LIMITED,POIN399,184950
BEIS,ACAS,07/04/2022,CONTRACTOR OFF-PAYROLL IN IR35,DELIVERY,ALEXANDER MANN SOLUTIONS LTD,POIN400,4090.44
BEIS,ACAS,11/04/2022,MANAGED SERVICE Off-PAYROLL WK,DELIVERY,AXIS 12 LIMITED,POIN401,45900
BEIS,ACAS,11/04/2022,MANAGED SERVICE Off-PAYROLL WK,DELIVERY,AXIS 12 LIMITED,POIN401,2700
BEIS,ACAS,01/04/2022,SOFTWARE & LICENCES,DDAT,MATRIX BOOKING LIMITED,POIN402,1620
BEIS,ACAS,01/04/2022,SOFTWARE & LICENCES,DDAT,MATRIX BOOKING LIMITED,POIN402,180
BEIS,ACAS,01/04/2022,SOFTWARE & LICENCES,DDAT,MATRIX BOOKING LIMITED,POIN402,324
BEIS,ACAS,01/04/2022,SOFTWARE & LICENCES,DDAT,MATRIX BOOKING LIMITED,POIN402,36
BEIS,ACAS,01/04/2022,SOFTWARE & LICENCES,DDAT,MATRIX BOOKING LIMITED,POIN402,2799.36
BEIS,ACAS,01/04/2022,SOFTWARE & LICENCES,DDAT,MATRIX BOOKING LIMITED,POIN402,311.04
BEIS,ACAS,01/04/2022,SOFTWARE & LICENCES,DDAT,MATRIX BOOKING LIMITED,POIN402,725.76
BEIS,ACAS,01/04/2022,SOFTWARE & LICENCES,DDAT,MATRIX BOOKING LIMITED,POIN402,80.64
BEIS,ACAS,01/04/2022,SOFTWARE & LICENCES,DDAT,MATRIX BOOKING LIMITED,POIN402,933.12
BEIS,ACAS,01/04/2022,SOFTWARE & LICENCES,DDAT,MATRIX BOOKING LIMITED,POIN402,103.68
BEIS,ACAS,01/04/2022,PROFESSIONAL FEES,DDAT,MATRIX BOOKING LIMITED,POIN402,780
BEIS,ACAS,01/04/2022,PROFESSIONAL FEES,DDAT,VERSION 1 SOLUTIONS LTD,POIN403,6370
BEIS,ACAS,01/04/2022,PROFESSIONAL FEES,DDAT,SIRIUS OPEN SOURCE LIMITED,POIN404,22176
BEIS,ACAS,07/04/2022,PUBLICITY,STRATEGY,YOUGOV PLC,POIN405,19200
BEIS,ACAS,07/04/2022,PUBLICITY,STRATEGY,YOUGOV PLC,POIN406,10800
BEIS,ACAS,07/04/2022,PUBLICITY,STRATEGY,YOUGOV PLC,POIN406,1680
BEIS,ACAS,01/04/2022,PROFESSIONAL FEES,DDAT,SIRIUS OPEN SOURCE LIMITED,POIN407,1792.61
BEIS,ACAS,12/04/2022,EXTERNAL LEARNING,ODHR,NORTHGATE TRAINING LTD,POIN408,1074
BEIS,ACAS,01/04/2022,PROFESSIONAL FEES,DDAT,VERSION 1 SOLUTIONS LTD,POIN409,9765.27
BEIS,ACAS,01/04/2022,PROFESSIONAL FEES,DDAT,VERSION 1 SOLUTIONS LTD,POIN409,7635.3
BEIS,ACAS,01/04/2022,PROFESSIONAL FEES,DDAT,TISSKI LTD,POIN410,8208
BEIS,ACAS,01/04/2022,PROFESSIONAL FEES,DDAT,TISSKI LTD,POIN411,10602
BEIS,ACAS,01/04/2022,PROFESSIONAL FEES,DDAT,TISSKI LTD,POIN412,19170
BEIS,ACAS,13/04/2022,PROFESSIONAL FEES,DELIVERY,LANGUAGE EMPIRE LTD,POIN413,2592.08
BEIS,ACAS,13/04/2022,PROFESSIONAL FEES,DELIVERY,LANGUAGE EMPIRE LTD,POIN413,2592.1
BEIS,ACAS,12/04/2022,STAFF RECRUITMENT COSTS,ODHR,CABINET OFFICE,POIN414,2763
BEIS,ACAS,12/04/2022,STAFF RECRUITMENT COSTS,ODHR,CABINET OFFICE,POIN414,0.6
BEIS,ACAS,12/04/2022,SOFTWARE & LICENCES,DDAT,PHOENIX SOFTWARE LTD,POIN415,30036.6
BEIS,ACAS,13/04/2022,EXTERNAL LEARNING - CSL,ODHR,ERNST & YOUNG LLP,POIN416,1323.6
BEIS,ACAS,14/04/2022,OCCUPATIONAL HEALTH SERVICE,FEP,FLEXIFORM BUSINESS FURNITURE LTD,POIN417,266.4
BEIS,ACAS,13/04/2022,EXTERNAL LEARNING,ODHR,QAIQ,POIN418,360
BEIS,ACAS,11/04/2022,SOFTWARE & LICENCES,DDAT,BYTES SOFTWARE SERVICES LIMITED,POIN419,674.7
BEIS,ACAS,11/04/2022,SOFTWARE & LICENCES,DDAT,BYTES SOFTWARE SERVICES LIMITED,POIN419,75
BEIS,ACAS,14/04/2022,EXTERNAL LEARNING - CSL,ODHR,KPMG LLP,POIN420,1288.8
BEIS,ACAS,12/04/2022,SOFTWARE & LICENCES,DDAT,BYTES SOFTWARE SERVICES LIMITED,POIN421,4498.2
BEIS,ACAS,12/04/2022,SOFTWARE & LICENCES,DDAT,BYTES SOFTWARE SERVICES LIMITED,POIN421,499.8
BEIS,ACAS,12/04/2022,SOFTWARE & LICENCES,DDAT,BYTES SOFTWARE SERVICES LIMITED,POIN421,1097.36
BEIS,ACAS,12/04/2022,SOFTWARE & LICENCES,DDAT,BYTES SOFTWARE SERVICES LIMITED,POIN421,121.98
BEIS,ACAS,12/04/2022,SOFTWARE & LICENCES,DDAT,BYTES SOFTWARE SERVICES LIMITED,POIN421,4928.26
BEIS,ACAS,12/04/2022,SOFTWARE & LICENCES,DDAT,BYTES SOFTWARE SERVICES LIMITED,POIN421,547.63
BEIS,ACAS,12/04/2022,SOFTWARE & LICENCES,DDAT,BYTES SOFTWARE SERVICES LIMITED,POIN421,2149.85
BEIS,ACAS,12/04/2022,SOFTWARE & LICENCES,DDAT,BYTES SOFTWARE SERVICES LIMITED,POIN421,238.86
BEIS,ACAS,12/04/2022,SOFTWARE & LICENCES,DDAT,BYTES SOFTWARE SERVICES LIMITED,POIN421,5629.59
BEIS,ACAS,12/04/2022,SOFTWARE & LICENCES,DDAT,BYTES SOFTWARE SERVICES LIMITED,POIN421,625.36
BEIS,ACAS,05/04/2022,PERSONAL EXPENSE,SOUTH&LONDON,NAME / DESCRIPTION WITHHELD,EXPS423,37.8
BEIS,ACAS,05/04/2022,PERSONAL EXPENSE,SOUTH&LONDON,NAME / DESCRIPTION WITHHELD,EXPS423,252.9
BEIS,ACAS,05/04/2022,PERSONAL EXPENSE,SOUTH&LONDON,NAME / DESCRIPTION WITHHELD,EXPS423,5
BEIS,ACAS,05/04/2022,PERSONAL EXPENSE,SOUTH&LONDON,NAME / DESCRIPTION WITHHELD,EXPS423,5
BEIS,ACAS,05/04/2022,PERSONAL EXPENSE,SOUTH&LONDON,NAME / DESCRIPTION WITHHELD,EXPS423,20
BEIS,ACAS,05/04/2022,PERSONAL EXPENSE,SOUTH&LONDON,NAME / DESCRIPTION WITHHELD,EXPS423,10
BEIS,ACAS,31/01/2022,PROFESSIONAL FEES,DDAT,VERSION 1 SOLUTIONS LTD,POIN424,1123.67
BEIS,ACAS,21/04/2022,CONTRACTOR OFF-PAYROLL IN IR35,DELIVERY,ALEXANDER MANN SOLUTIONS LTD,POIN426,1413.52
BEIS,ACAS,21/04/2022,CONTRACTOR OFF-PAYROLL IN IR35,DELIVERY,ALEXANDER MANN SOLUTIONS LTD,POIN426,5139.1
BEIS,ACAS,07/04/2022,AGENCY STAFF,ODHR,ALEXANDER MANN SOLUTIONS LTD,POIN427,800.69
BEIS,ACAS,07/04/2022,AGENCY STAFF,ODHR,ALEXANDER MANN SOLUTIONS LTD,POIN428,2016.19
BEIS,ACAS,24/03/2022,AGENCY STAFF,ODHR,ALEXANDER MANN SOLUTIONS LTD,POIN429,2520.24
BEIS,ACAS,21/04/2022,AGENCY STAFF,ODHR,ALEXANDER MANN SOLUTIONS LTD,POIN430,7206.19
BEIS,ACAS,04/04/2022,PERSONAL EXPENSE,WALES&MID,NAME / DESCRIPTION WITHHELD,EXPS430,21.6
BEIS,ACAS,04/04/2022,PERSONAL EXPENSE,WALES&MID,NAME / DESCRIPTION WITHHELD,EXPS430,218.25
BEIS,ACAS,04/04/2022,PERSONAL EXPENSE,WALES&MID,NAME / DESCRIPTION WITHHELD,EXPS430,30.15
BEIS,ACAS,04/04/2022,PERSONAL EXPENSE,WALES&MID,NAME / DESCRIPTION WITHHELD,EXPS430,10
BEIS,ACAS,04/04/2022,PERSONAL EXPENSE,WALES&MID,NAME / DESCRIPTION WITHHELD,EXPS430,20
BEIS,ACAS,04/04/2022,PERSONAL EXPENSE,WALES&MID,NAME / DESCRIPTION WITHHELD,EXPS430,20
BEIS,ACAS,04/04/2022,PERSONAL EXPENSE,WALES&MID,NAME / DESCRIPTION WITHHELD,EXPS430,20
BEIS,ACAS,04/04/2022,PERSONAL EXPENSE,WALES&MID,NAME / DESCRIPTION WITHHELD,EXPS430,10
BEIS,ACAS,04/04/2022,PERSONAL EXPENSE,WALES&MID,NAME / DESCRIPTION WITHHELD,EXPS430,20
BEIS,ACAS,04/04/2022,PERSONAL EXPENSE,WALES&MID,NAME / DESCRIPTION WITHHELD,EXPS430,9.4
BEIS,ACAS,04/04/2022,PERSONAL EXPENSE,WALES&MID,NAME / DESCRIPTION WITHHELD,EXPS430,4.7
BEIS,ACAS,04/04/2022,PERSONAL EXPENSE,WALES&MID,NAME / DESCRIPTION WITHHELD,EXPS430,12.15
BEIS,ACAS,31/03/2022,CONTRACTOR OFF-PAYROLL IN IR35,DELIVERY,ALEXANDER MANN SOLUTIONS LTD,POIN431,1363.49
BEIS,ACAS,26/04/2022,EXTERNAL LEARNING - CSL,ODHR,KPMG LLP,POIN432,1288.8
BEIS,ACAS,20/04/2022,COMPUTER HARDWARE,DDAT,RESTORE TECHNOLOGY,POIN433,837
BEIS,ACAS,20/04/2022,COMPUTER HARDWARE,DDAT,RESTORE TECHNOLOGY,POIN433,93
BEIS,ACAS,05/04/2022,PERSONAL EXPENSE,SOUTH&LONDON,NAME / DESCRIPTION WITHHELD,EXPS433,248.4
BEIS,ACAS,05/04/2022,PERSONAL EXPENSE,SOUTH&LONDON,NAME / DESCRIPTION WITHHELD,EXPS433,20
BEIS,ACAS,21/04/2022,SOFTWARE & LICENCES,DDAT,PHOENIX SOFTWARE LTD,POIN434,7800
BEIS,ACAS,27/04/2022,EXTERNAL LEARNING,ODHR,CIPP,POIN435,3714
BEIS,ACAS,28/04/2022,CONTRACTOR OFF-PAYROLL IN IR35,DELIVERY,ALEXANDER MANN SOLUTIONS LTD,POIN438,2016.19
BEIS,ACAS,01/04/2022,PERSONAL EXPENSE,DELIVERY,NAME / DESCRIPTION WITHHELD,EXPS439,16.2
BEIS,ACAS,01/04/2022,PERSONAL EXPENSE,DELIVERY,NAME / DESCRIPTION WITHHELD,EXPS439,339.2
BEIS,ACAS,01/04/2022,PERSONAL EXPENSE,DELIVERY,NAME / DESCRIPTION WITHHELD,EXPS439,41.6
BEIS,ACAS,01/04/2022,PERSONAL EXPENSE,DELIVERY,NAME / DESCRIPTION WITHHELD,EXPS439,12
BEIS,ACAS,01/04/2022,PERSONAL EXPENSE,DELIVERY,NAME / DESCRIPTION WITHHELD,EXPS439,25
BEIS,ACAS,24/03/2022,CONTRACTOR OFF-PAYROLL IN IR35,DELIVERY,ALEXANDER MANN SOLUTIONS LTD,POIN439,4003.56
BEIS,ACAS,29/04/2022,EXTERNAL LEARNING,ODHR,RIPPLE ROCK LTD,POIN440,1272
BEIS,ACAS,06/04/2022,PERSONAL EXPENSE,SOUTH&LONDON,NAME / DESCRIPTION WITHHELD,EXPS440,50.4
BEIS,ACAS,06/04/2022,PERSONAL EXPENSE,SOUTH&LONDON,NAME / DESCRIPTION WITHHELD,EXPS440,216
BEIS,ACAS,06/04/2022,PERSONAL EXPENSE,SOUTH&LONDON,NAME / DESCRIPTION WITHHELD,EXPS440,54.9
BEIS,ACAS,06/04/2022,PERSONAL EXPENSE,SOUTH&LONDON,NAME / DESCRIPTION WITHHELD,EXPS440,25.2
BEIS,ACAS,06/04/2022,PERSONAL EXPENSE,SOUTH&LONDON,NAME / DESCRIPTION WITHHELD,EXPS440,10
BEIS,ACAS,06/04/2022,PERSONAL EXPENSE,SOUTH&LONDON,NAME / DESCRIPTION WITHHELD,EXPS440,35
BEIS,ACAS,06/04/2022,PERSONAL EXPENSE,SOUTH&LONDON,NAME / DESCRIPTION WITHHELD,EXPS440,10
BEIS,ACAS,06/04/2022,PERSONAL EXPENSE,SOUTH&LONDON,NAME / DESCRIPTION WITHHELD,EXPS440,35
BEIS,ACAS,06/04/2022,PERSONAL EXPENSE,SOUTH&LONDON,NAME / DESCRIPTION WITHHELD,EXPS440,25
BEIS,ACAS,06/04/2022,PERSONAL EXPENSE,SOUTH&LONDON,NAME / DESCRIPTION WITHHELD,EXPS440,25
BEIS,ACAS,29/04/2022,EXTERNAL LEARNING - CSL,ODHR,KPMG LLP,POIN441,3589.2
BEIS,ACAS,29/04/2022,EXTERNAL LEARNING - CSL,ODHR,KPMG LLP,POIN442,1288.8
BEIS,ACAS,06/04/2022,PERSONAL EXPENSE,DELIVERY,NAME / DESCRIPTION WITHHELD,EXPS442,135
BEIS,ACAS,06/04/2022,PERSONAL EXPENSE,DELIVERY,NAME / DESCRIPTION WITHHELD,EXPS442,65
BEIS,ACAS,06/04/2022,PERSONAL EXPENSE,DELIVERY,NAME / DESCRIPTION WITHHELD,EXPS442,20
BEIS,ACAS,06/04/2022,PERSONAL EXPENSE,DELIVERY,NAME / DESCRIPTION WITHHELD,EXPS442,5
BEIS,ACAS,06/04/2022,PERSONAL EXPENSE,DELIVERY,NAME / DESCRIPTION WITHHELD,EXPS442,35
BEIS,ACAS,29/04/2022,EXTERNAL LEARNING - CSL,ODHR,KPMG LLP,POIN443,1288.8
BEIS,ACAS,07/04/2022,PERSONAL EXPENSE,WALES&MID,NAME / DESCRIPTION WITHHELD,EXPS445,95.4
BEIS,ACAS,07/04/2022,PERSONAL EXPENSE,WALES&MID,NAME / DESCRIPTION WITHHELD,EXPS445,99.45
BEIS,ACAS,07/04/2022,PERSONAL EXPENSE,WALES&MID,NAME / DESCRIPTION WITHHELD,EXPS445,51.01
BEIS,ACAS,07/04/2022,PERSONAL EXPENSE,WALES&MID,NAME / DESCRIPTION WITHHELD,EXPS445,11
BEIS,ACAS,07/04/2022,PERSONAL EXPENSE,WALES&MID,NAME / DESCRIPTION WITHHELD,EXPS445,5
BEIS,ACAS,07/04/2022,PERSONAL EXPENSE,WALES&MID,NAME / DESCRIPTION WITHHELD,EXPS445,35
BEIS,ACAS,08/04/2022,PERSONAL EXPENSE,SOUTH&LONDON,NAME / DESCRIPTION WITHHELD,EXPS453,228.6
BEIS,ACAS,08/04/2022,PERSONAL EXPENSE,SOUTH&LONDON,NAME / DESCRIPTION WITHHELD,EXPS453,56.25
BEIS,ACAS,08/04/2022,PERSONAL EXPENSE,SOUTH&LONDON,NAME / DESCRIPTION WITHHELD,EXPS453,4
BEIS,ACAS,08/04/2022,PERSONAL EXPENSE,SOUTH&LONDON,NAME / DESCRIPTION WITHHELD,EXPS453,10
BEIS,ACAS,08/04/2022,PERSONAL EXPENSE,SOUTH&LONDON,NAME / DESCRIPTION WITHHELD,EXPS453,20
BEIS,ACAS,08/04/2022,PERSONAL EXPENSE,SOUTH&LONDON,NAME / DESCRIPTION WITHHELD,EXPS453,10
BEIS,ACAS,08/04/2022,PERSONAL EXPENSE,CAC,NAME / DESCRIPTION WITHHELD,EXPS454,231.65
BEIS,ACAS,08/04/2022,PERSONAL EXPENSE,CAC,NAME / DESCRIPTION WITHHELD,EXPS454,21
BEIS,ACAS,08/04/2022,PERSONAL EXPENSE,CAC,NAME / DESCRIPTION WITHHELD,EXPS454,8.1
BEIS,ACAS,08/04/2022,PERSONAL EXPENSE,WALES&MID,NAME / DESCRIPTION WITHHELD,EXPS456,147.15
BEIS,ACAS,08/04/2022,PERSONAL EXPENSE,WALES&MID,NAME / DESCRIPTION WITHHELD,EXPS456,5.4
BEIS,ACAS,08/04/2022,PERSONAL EXPENSE,WALES&MID,NAME / DESCRIPTION WITHHELD,EXPS456,16.2
BEIS,ACAS,08/04/2022,PERSONAL EXPENSE,WALES&MID,NAME / DESCRIPTION WITHHELD,EXPS456,8
BEIS,ACAS,08/04/2022,PERSONAL EXPENSE,WALES&MID,NAME / DESCRIPTION WITHHELD,EXPS456,32
BEIS,ACAS,08/04/2022,PERSONAL EXPENSE,WALES&MID,NAME / DESCRIPTION WITHHELD,EXPS456,9.2
BEIS,ACAS,08/04/2022,PERSONAL EXPENSE,WALES&MID,NAME / DESCRIPTION WITHHELD,EXPS456,10
BEIS,ACAS,08/04/2022,PERSONAL EXPENSE,WALES&MID,NAME / DESCRIPTION WITHHELD,EXPS456,10
BEIS,ACAS,08/04/2022,PERSONAL EXPENSE,WALES&MID,NAME / DESCRIPTION WITHHELD,EXPS456,70
BEIS,ACAS,08/04/2022,PERSONAL EXPENSE,WALES&MID,NAME / DESCRIPTION WITHHELD,EXPS456,10
BEIS,ACAS,08/04/2022,PERSONAL EXPENSE,WALES&MID,NAME / DESCRIPTION WITHHELD,EXPS456,40
BEIS,ACAS,08/04/2022,PERSONAL EXPENSE,SPPC,NAME / DESCRIPTION WITHHELD,EXPS459,163.95
BEIS,ACAS,08/04/2022,PERSONAL EXPENSE,SPPC,NAME / DESCRIPTION WITHHELD,EXPS459,5
BEIS,ACAS,08/04/2022,PERSONAL EXPENSE,SPPC,NAME / DESCRIPTION WITHHELD,EXPS459,5
BEIS,ACAS,08/04/2022,PERSONAL EXPENSE,SPPC,NAME / DESCRIPTION WITHHELD,EXPS459,10
BEIS,ACAS,08/04/2022,PERSONAL EXPENSE,SPPC,NAME / DESCRIPTION WITHHELD,EXPS459,10
BEIS,ACAS,08/04/2022,PERSONAL EXPENSE,SPPC,NAME / DESCRIPTION WITHHELD,EXPS459,25
BEIS,ACAS,08/04/2022,PERSONAL EXPENSE,SPPC,NAME / DESCRIPTION WITHHELD,EXPS459,35
BEIS,ACAS,08/04/2022,PERSONAL EXPENSE,SPPC,NAME / DESCRIPTION WITHHELD,EXPS463,60.75
BEIS,ACAS,08/04/2022,PERSONAL EXPENSE,SPPC,NAME / DESCRIPTION WITHHELD,EXPS463,33.75
BEIS,ACAS,08/04/2022,PERSONAL EXPENSE,SPPC,NAME / DESCRIPTION WITHHELD,EXPS463,11
BEIS,ACAS,08/04/2022,PERSONAL EXPENSE,SPPC,NAME / DESCRIPTION WITHHELD,EXPS463,25
BEIS,ACAS,08/04/2022,PERSONAL EXPENSE,SPPC,NAME / DESCRIPTION WITHHELD,EXPS463,2.4
BEIS,ACAS,08/04/2022,PERSONAL EXPENSE,SPPC,NAME / DESCRIPTION WITHHELD,EXPS463,22
BEIS,ACAS,08/04/2022,PERSONAL EXPENSE,SPPC,NAME / DESCRIPTION WITHHELD,EXPS463,5
BEIS,ACAS,08/04/2022,PERSONAL EXPENSE,SPPC,NAME / DESCRIPTION WITHHELD,EXPS463,25
BEIS,ACAS,08/04/2022,PERSONAL EXPENSE,SPPC,NAME / DESCRIPTION WITHHELD,EXPS463,35
BEIS,ACAS,08/04/2022,PERSONAL EXPENSE,SPPC,NAME / DESCRIPTION WITHHELD,EXPS463,2.4
BEIS,ACAS,08/04/2022,PERSONAL EXPENSE,SPPC,NAME / DESCRIPTION WITHHELD,EXPS463,22
BEIS,ACAS,08/04/2022,PERSONAL EXPENSE,SPPC,NAME / DESCRIPTION WITHHELD,EXPS463,25
BEIS,ACAS,08/04/2022,PERSONAL EXPENSE,SPPC,NAME / DESCRIPTION WITHHELD,EXPS463,35
BEIS,ACAS,08/04/2022,PERSONAL EXPENSE,SPPC,NAME / DESCRIPTION WITHHELD,EXPS463,2.4
BEIS,ACAS,08/04/2022,PERSONAL EXPENSE,SPPC,NAME / DESCRIPTION WITHHELD,EXPS463,22
BEIS,ACAS,08/04/2022,PERSONAL EXPENSE,SPPC,NAME / DESCRIPTION WITHHELD,EXPS463,5
BEIS,ACAS,08/04/2022,PERSONAL EXPENSE,SPPC,NAME / DESCRIPTION WITHHELD,EXPS463,25
BEIS,ACAS,08/04/2022,PERSONAL EXPENSE,SPPC,NAME / DESCRIPTION WITHHELD,EXPS463,35
BEIS,ACAS,08/04/2022,PERSONAL EXPENSE,SPPC,NAME / DESCRIPTION WITHHELD,EXPS463,2.4
BEIS,ACAS,08/04/2022,PERSONAL EXPENSE,SPPC,NAME / DESCRIPTION WITHHELD,EXPS463,11
BEIS,ACAS,08/04/2022,PERSONAL EXPENSE,SPPC,NAME / DESCRIPTION WITHHELD,EXPS463,25
BEIS,ACAS,08/04/2022,PERSONAL EXPENSE,SPPC,NAME / DESCRIPTION WITHHELD,EXPS463,5
BEIS,ACAS,08/04/2022,PERSONAL EXPENSE,SPPC,NAME / DESCRIPTION WITHHELD,EXPS463,33
BEIS,ACAS,08/04/2022,PERSONAL EXPENSE,SPPC,NAME / DESCRIPTION WITHHELD,EXPS463,5
BEIS,ACAS,08/04/2022,PERSONAL EXPENSE,SPPC,NAME / DESCRIPTION WITHHELD,EXPS463,5
BEIS,ACAS,08/04/2022,PERSONAL EXPENSE,SPPC,NAME / DESCRIPTION WITHHELD,EXPS463,70
BEIS,ACAS,08/04/2022,PERSONAL EXPENSE,SPPC,NAME / DESCRIPTION WITHHELD,EXPS463,7.5
BEIS,ACAS,08/04/2022,PERSONAL EXPENSE,SPPC,NAME / DESCRIPTION WITHHELD,EXPS463,25
BEIS,ACAS,08/04/2022,PERSONAL EXPENSE,SPPC,NAME / DESCRIPTION WITHHELD,EXPS463,11
BEIS,ACAS,12/04/2022,PERSONAL EXPENSE,NORTH&MID,NAME / DESCRIPTION WITHHELD,EXPS471,49.3
BEIS,ACAS,12/04/2022,PERSONAL EXPENSE,NORTH&MID,NAME / DESCRIPTION WITHHELD,EXPS471,2.3
BEIS,ACAS,12/04/2022,PERSONAL EXPENSE,NORTH&MID,NAME / DESCRIPTION WITHHELD,EXPS471,25
BEIS,ACAS,12/04/2022,PERSONAL EXPENSE,NORTH&MID,NAME / DESCRIPTION WITHHELD,EXPS471,175
BEIS,ACAS,12/04/2022,PERSONAL EXPENSE,NORTH&MID,NAME / DESCRIPTION WITHHELD,EXPS471,10
BEIS,ACAS,20/04/2022,PERSONAL EXPENSE,ODHR,NAME / DESCRIPTION WITHHELD,EXPS490,3255.07
BEIS,ACAS,22/04/2022,PERSONAL EXPENSE,NORTH&MID,NAME / DESCRIPTION WITHHELD,EXPS494,24.4
BEIS,ACAS,22/04/2022,PERSONAL EXPENSE,NORTH&MID,NAME / DESCRIPTION WITHHELD,EXPS494,52
BEIS,ACAS,22/04/2022,PERSONAL EXPENSE,NORTH&MID,NAME / DESCRIPTION WITHHELD,EXPS494,4.8
BEIS,ACAS,22/04/2022,PERSONAL EXPENSE,NORTH&MID,NAME / DESCRIPTION WITHHELD,EXPS494,20
BEIS,ACAS,22/04/2022,PERSONAL EXPENSE,NORTH&MID,NAME / DESCRIPTION WITHHELD,EXPS494,140
BEIS,ACAS,22/04/2022,PERSONAL EXPENSE,NORTH&MID,NAME / DESCRIPTION WITHHELD,EXPS494,10
BEIS,ACAS,25/04/2022,PERSONAL EXPENSE,SOUTH&LONDON,NAME / DESCRIPTION WITHHELD,EXPS495,245.7
BEIS,ACAS,25/04/2022,PERSONAL EXPENSE,SOUTH&LONDON,NAME / DESCRIPTION WITHHELD,EXPS495,10
BEIS,ACAS,25/04/2022,PERSONAL EXPENSE,SOUTH&LONDON,NAME / DESCRIPTION WITHHELD,EXPS495,30
BEIS,ACAS,25/04/2022,PERSONAL EXPENSE,ODHR,NAME / DESCRIPTION WITHHELD,EXPS497,14988.31
BEIS,ACAS,28/04/2022,PERSONAL EXPENSE,ODHR,NAME / DESCRIPTION WITHHELD,EXPS512,5156.1
BEIS,ACAS,29/04/2022,PERSONAL EXPENSE,SOUTH&LONDON,NAME / DESCRIPTION WITHHELD,EXPS518,108.45
BEIS,ACAS,29/04/2022,PERSONAL EXPENSE,SOUTH&LONDON,NAME / DESCRIPTION WITHHELD,EXPS518,128.7
BEIS,ACAS,29/04/2022,PERSONAL EXPENSE,SOUTH&LONDON,NAME / DESCRIPTION WITHHELD,EXPS518,43
BEIS,ACAS,29/04/2022,PERSONAL EXPENSE,SOUTH&LONDON,NAME / DESCRIPTION WITHHELD,EXPS518,15
BEIS,ACAS,29/04/2022,PERSONAL EXPENSE,SOUTH&LONDON,NAME / DESCRIPTION WITHHELD,EXPS518,10
BEIS,ACAS,29/04/2022,PERSONAL EXPENSE,SOUTH&LONDON,NAME / DESCRIPTION WITHHELD,EXPS518,70
BEIS,ACAS,29/04/2022,PERSONAL EXPENSE,SOUTH&LONDON,NAME / DESCRIPTION WITHHELD,EXPS518,105
BEIS,ACAS,29/04/2022,PERSONAL EXPENSE,SOUTH&LONDON,NAME / DESCRIPTION WITHHELD,EXPS518,20
BEIS,ACAS,29/04/2022,PERSONAL EXPENSE,SOUTH&LONDON,NAME / DESCRIPTION WITHHELD,EXPS518,4
BEIS,ACAS,29/04/2022,PERSONAL EXPENSE,SOUTH&LONDON,NAME / DESCRIPTION WITHHELD,EXPS521,226.8
BEIS,ACAS,29/04/2022,PERSONAL EXPENSE,SOUTH&LONDON,NAME / DESCRIPTION WITHHELD,EXPS521,30
BEIS,ACAS,29/04/2022,PERSONAL EXPENSE,SOUTH&LONDON,NAME / DESCRIPTION WITHHELD,EXPS521,30
BEIS,ACAS,01/04/2022,MEMBERSHIP FEES,CAC,PUBLIC CHAIR S FORUM,PINV524,500
BEIS,ACAS,01/04/2022,MEMBERSHIP FEES,NORTH&MID,MANSFIELD 2020 LTD,PINV525,366
BEIS,ACAS,05/04/2022,MAINTENANCE (TFM2),FEP,GOVERNMENT PROPERTY AGENCY,PINV526,998.39
BEIS,ACAS,01/04/2022,VENUE HIRE (REC VAT),SOUTH&LONDON,CALDER CONFERENCES LTD,PINV527,420
BEIS,ACAS,01/04/2022,VENUE HIRE (REC VAT),WALES&MID,CALDER CONFERENCES LTD,PINV527,215.6
BEIS,ACAS,05/04/2022,LEARNING RESOURCE MATERIALS,ODHR,MHR INTERNATIONAL UK LTD,PINV534,2284.2
BEIS,ACAS,05/04/2022,SUBSISTENCE,CO,T C YOUNG LLP,PINV535,1875
BEIS,ACAS,01/04/2022,TELEPHONES,DDAT,CENTURYLINK COMMUNICATIONS UK LIMITED,PINV537,6232.18
BEIS,ACAS,01/04/2022,TELEPHONES,DDAT,CENTURYLINK COMMUNICATIONS UK LIMITED,PINV537,692.46
BEIS,ACAS,01/04/2022,SOFTWARE & LICENCES,DDAT,CENTURYLINK COMMUNICATIONS UK LIMITED,PINV537,4390.94
BEIS,ACAS,01/04/2022,SOFTWARE & LICENCES,DDAT,CENTURYLINK COMMUNICATIONS UK LIMITED,PINV537,487.88
BEIS,ACAS,01/04/2022,RECOGNITION PAYMENTS,CENTRE,EDENRED (UK GROUP ) LTD,PINV538,19460
BEIS,ACAS,01/04/2022,PHOTOCOPIERS,DDAT,Canon (UK) Ltd,PINV539,1929.84
BEIS,ACAS,01/04/2022,PHOTOCOPIERS,DDAT,Canon (UK) Ltd,PINV539,214.43
BEIS,ACAS,04/04/2022,PROFESSIONAL FEES,DDAT,W3 PARTNERSHIP LTD,PINV540,2326.38
BEIS,ACAS,01/04/2022,EXTERNAL LEARNING,ODHR,DODS GROUP LTD,PINV541,300
BEIS,ACAS,06/04/2022,MAINTENANCE (TFM2),FEP,GOVERNMENT PROPERTY AGENCY,PINV542,4977.89
BEIS,ACAS,01/04/2022,POSTAGE,FEP,GOVERNMENT PROPERTY AGENCY,PINV544,685.08
BEIS,ACAS,01/04/2022,AGENCY STAFF,NORTH&MID,ALEXANDER MANN SOLUTIONS LTD,PINV545,638.03
BEIS,ACAS,01/04/2022,AGENCY STAFF,NORTH&MID,ALEXANDER MANN SOLUTIONS LTD,PINV546,413.86
BEIS,ACAS,06/04/2022,EXTERNAL LEARNING - CSL,ODHR,KPMG LLP,PINV548,1858.8
BEIS,ACAS,05/04/2022,REFUNDS,WALES&MID,ANDERSONBRECON (UK) LTD,PINV550,1284
BEIS,ACAS,07/04/2022,PROFESSIONAL FEES,FEP,GOVERNMENT PROPERTY AGENCY,PINV557,14776.52
BEIS,ACAS,07/04/2022,SERVICE CHARGES,FEP,GOVERNMENT PROPERTY AGENCY,PINV558,10423.54
BEIS,ACAS,07/04/2022,PROFESSIONAL FEES,FEP,GOVERNMENT PROPERTY AGENCY,PINV558,8706
BEIS,ACAS,07/04/2022,RENTS,FEP,GOVERNMENT PROPERTY AGENCY,PINV558,11012.75
BEIS,ACAS,07/04/2022,RATES,FEP,GOVERNMENT PROPERTY AGENCY,PINV559,10371.1
BEIS,ACAS,07/04/2022,RENTS,FEP,GOVERNMENT PROPERTY AGENCY,PINV559,1147
BEIS,ACAS,07/04/2022,SERVICE CHARGES,FEP,GOVERNMENT PROPERTY AGENCY,PINV559,14008.78
BEIS,ACAS,07/04/2022,FACILITIES MANAGEMENT,FEP,GOVERNMENT PROPERTY AGENCY,PINV559,6948.9
BEIS,ACAS,07/04/2022,SERVICE CHARGES,FEP,GOVERNMENT PROPERTY AGENCY,PINV560,8634.76
BEIS,ACAS,07/04/2022,PROFESSIONAL FEES,FEP,GOVERNMENT PROPERTY AGENCY,PINV560,4270.78
BEIS,ACAS,07/04/2022,PROFESSIONAL FEES,FEP,GOVERNMENT PROPERTY AGENCY,PINV561,5061
BEIS,ACAS,07/04/2022,SERVICE CHARGES,FEP,GOVERNMENT PROPERTY AGENCY,PINV561,15483.75
BEIS,ACAS,07/04/2022,RATES,FEP,GOVERNMENT PROPERTY AGENCY,PINV561,2875
BEIS,ACAS,07/04/2022,RENTS,FEP,GOVERNMENT PROPERTY AGENCY,PINV561,9634.5
BEIS,ACAS,07/04/2022,HOTEL EXPENSES,DELIVERY,CORPORATE TRAVEL MANAGEMENTLIMITED,PINV563,74.1
BEIS,ACAS,07/04/2022,HOTEL EXPENSES,SPPC,CORPORATE TRAVEL MANAGEMENTLIMITED,PINV563,136.12
BEIS,ACAS,07/04/2022,HOTEL EXPENSES,SPPC,CORPORATE TRAVEL MANAGEMENTLIMITED,PINV563,136.12
BEIS,ACAS,07/04/2022,HOTEL EXPENSES,DELIVERY,CORPORATE TRAVEL MANAGEMENTLIMITED,PINV563,166.12
BEIS,ACAS,07/04/2022,HOTEL EXPENSES,NORTH&MID,CORPORATE TRAVEL MANAGEMENTLIMITED,PINV563,115.96
BEIS,ACAS,07/04/2022,HOTEL EXPENSES,CAC,CORPORATE TRAVEL MANAGEMENTLIMITED,PINV563,160.2
BEIS,ACAS,07/04/2022,HOTEL EXPENSES,NORTH&MID,CORPORATE TRAVEL MANAGEMENTLIMITED,PINV563,58.46
BEIS,ACAS,07/04/2022,HOTEL EXPENSES,FEP,CORPORATE TRAVEL MANAGEMENTLIMITED,PINV563,128.62
BEIS,ACAS,07/04/2022,HOTEL EXPENSES,SOUTH&LONDON,CORPORATE TRAVEL MANAGEMENTLIMITED,PINV563,114.74
BEIS,ACAS,07/04/2022,HOTEL EXPENSES,CAC,CORPORATE TRAVEL MANAGEMENTLIMITED,PINV563,148.98
BEIS,ACAS,07/04/2022,HOTEL EXPENSES,CAC,CORPORATE TRAVEL MANAGEMENTLIMITED,PINV563,160.2
BEIS,ACAS,07/04/2022,HOTEL EXPENSES,STRATEGY,CORPORATE TRAVEL MANAGEMENTLIMITED,PINV563,115.12
BEIS,ACAS,07/04/2022,HOTEL EXPENSES,NORTH&MID,CORPORATE TRAVEL MANAGEMENTLIMITED,PINV563,79.24
BEIS,ACAS,07/04/2022,HOTEL EXPENSES,SPPC,CORPORATE TRAVEL MANAGEMENTLIMITED,PINV563,203.12
BEIS,ACAS,07/04/2022,HOTEL EXPENSES,CAC,CORPORATE TRAVEL MANAGEMENTLIMITED,PINV563,160.2
BEIS,ACAS,07/04/2022,HOTEL EXPENSES,SPPC,CORPORATE TRAVEL MANAGEMENTLIMITED,PINV563,166.12
BEIS,ACAS,07/04/2022,HOTEL EXPENSES,DDAT,CORPORATE TRAVEL MANAGEMENTLIMITED,PINV563,68.62
BEIS,ACAS,07/04/2022,HOTEL EXPENSES,SPPC,CORPORATE TRAVEL MANAGEMENTLIMITED,PINV563,203.12
BEIS,ACAS,07/04/2022,HOTEL EXPENSES,NORTH&MID,CORPORATE TRAVEL MANAGEMENTLIMITED,PINV563,107.63
BEIS,ACAS,07/04/2022,HOTEL EXPENSES,STRATEGY,CORPORATE TRAVEL MANAGEMENTLIMITED,PINV563,203.12
BEIS,ACAS,07/04/2022,HOTEL EXPENSES,DDAT,CORPORATE TRAVEL MANAGEMENTLIMITED,PINV563,80.81
BEIS,ACAS,07/04/2022,HOTEL EXPENSES,SOUTH&LONDON,CORPORATE TRAVEL MANAGEMENTLIMITED,PINV563,63.18
BEIS,ACAS,07/04/2022,HOTEL EXPENSES,SOUTH&LONDON,CORPORATE TRAVEL MANAGEMENTLIMITED,PINV563,64.52
BEIS,ACAS,07/04/2022,HOTEL EXPENSES,DDAT,CORPORATE TRAVEL MANAGEMENTLIMITED,PINV563,98.32
BEIS,ACAS,07/04/2022,HOTEL EXPENSES,NORTH&MID,CORPORATE TRAVEL MANAGEMENTLIMITED,PINV563,97.23
BEIS,ACAS,07/04/2022,HOTEL EXPENSES,DELIVERY,CORPORATE TRAVEL MANAGEMENTLIMITED,PINV563,159.12
BEIS,ACAS,07/04/2022,HOTEL EXPENSES,STRATEGY,CORPORATE TRAVEL MANAGEMENTLIMITED,PINV563,161.12
BEIS,ACAS,07/04/2022,HOTEL EXPENSES,STRATEGY,CORPORATE TRAVEL MANAGEMENTLIMITED,PINV563,331.12
BEIS,ACAS,07/04/2022,HOTEL EXPENSES,STRATEGY,CORPORATE TRAVEL MANAGEMENTLIMITED,PINV563,277.12
BEIS,ACAS,07/04/2022,HOTEL EXPENSES,NORTH&MID,CORPORATE TRAVEL MANAGEMENTLIMITED,PINV563,71.42
BEIS,ACAS,07/04/2022,HOTEL EXPENSES,SOUTH&LONDON,CORPORATE TRAVEL MANAGEMENTLIMITED,PINV563,57.85
BEIS,ACAS,07/04/2022,HOTEL EXPENSES,SOUTH&LONDON,CORPORATE TRAVEL MANAGEMENTLIMITED,PINV563,60.96
BEIS,ACAS,07/04/2022,HOTEL EXPENSES,DELIVERY,CORPORATE TRAVEL MANAGEMENTLIMITED,PINV563,173.32
BEIS,ACAS,07/04/2022,HOTEL EXPENSES,NORTH&MID,CORPORATE TRAVEL MANAGEMENTLIMITED,PINV563,71.42
BEIS,ACAS,07/04/2022,HOTEL EXPENSES,ODHR,CORPORATE TRAVEL MANAGEMENTLIMITED,PINV563,249.12
BEIS,ACAS,07/04/2022,HOTEL EXPENSES,SOUTH&LONDON,CORPORATE TRAVEL MANAGEMENTLIMITED,PINV563,136.07
BEIS,ACAS,07/04/2022,HOTEL EXPENSES,ODHR,CORPORATE TRAVEL MANAGEMENTLIMITED,PINV563,76.12
BEIS,ACAS,07/04/2022,HOTEL EXPENSES,SOUTH&LONDON,CORPORATE TRAVEL MANAGEMENTLIMITED,PINV563,86.12
BEIS,ACAS,07/04/2022,HOTEL EXPENSES,SOUTH&LONDON,CORPORATE TRAVEL MANAGEMENTLIMITED,PINV563,79.18
BEIS,ACAS,07/04/2022,HOTEL EXPENSES,CAC,CORPORATE TRAVEL MANAGEMENTLIMITED,PINV563,229.12
BEIS,ACAS,07/04/2022,HOTEL EXPENSES,CAC,CORPORATE TRAVEL MANAGEMENTLIMITED,PINV563,1.12
BEIS,ACAS,07/04/2022,HOTEL EXPENSES,NORTH&MID,CORPORATE TRAVEL MANAGEMENTLIMITED,PINV563,0.96
BEIS,ACAS,07/04/2022,HOTEL EXPENSES,DELIVERY,CORPORATE TRAVEL MANAGEMENTLIMITED,PINV563,0.96
BEIS,ACAS,07/04/2022,HOTEL EXPENSES,SPPC,CORPORATE TRAVEL MANAGEMENTLIMITED,PINV563,1.12
BEIS,ACAS,07/04/2022,HOTEL EXPENSES,SPPC,CORPORATE TRAVEL MANAGEMENTLIMITED,PINV563,1.12
BEIS,ACAS,07/04/2022,HOTEL EXPENSES,STRATEGY,CORPORATE TRAVEL MANAGEMENTLIMITED,PINV563,1.12
BEIS,ACAS,07/04/2022,HOTEL EXPENSES,DDAT,CORPORATE TRAVEL MANAGEMENTLIMITED,PINV563,1.12
BEIS,ACAS,07/04/2022,HOTEL EXPENSES,ODHR,CORPORATE TRAVEL MANAGEMENTLIMITED,PINV563,1.12
BEIS,ACAS,07/04/2022,HOTEL EXPENSES,SOUTH&LONDON,CORPORATE TRAVEL MANAGEMENTLIMITED,PINV563,0.96
BEIS,ACAS,07/04/2022,HOTEL EXPENSES,SOUTH&LONDON,CORPORATE TRAVEL MANAGEMENTLIMITED,PINV563,1.12
BEIS,ACAS,07/04/2022,PUBLIC TRANSPORT & PARKING,SPPC,CORPORATE TRAVEL MANAGEMENTLIMITED,PINV563,260.55
BEIS,ACAS,07/04/2022,PUBLIC TRANSPORT & PARKING,STRATEGY,CORPORATE TRAVEL MANAGEMENTLIMITED,PINV563,245.45
BEIS,ACAS,07/04/2022,PUBLIC TRANSPORT & PARKING,SPPC,CORPORATE TRAVEL MANAGEMENTLIMITED,PINV563,197.25
BEIS,ACAS,07/04/2022,PUBLIC TRANSPORT & PARKING,SPPC,CORPORATE TRAVEL MANAGEMENTLIMITED,PINV563,208.95
BEIS,ACAS,07/04/2022,PUBLIC TRANSPORT & PARKING,ODHR,CORPORATE TRAVEL MANAGEMENTLIMITED,PINV563,271.45
BEIS,ACAS,07/04/2022,PUBLIC TRANSPORT & PARKING,SPPC,CORPORATE TRAVEL MANAGEMENTLIMITED,PINV563,80.25
BEIS,ACAS,07/04/2022,PUBLIC TRANSPORT & PARKING,SPPC,CORPORATE TRAVEL MANAGEMENTLIMITED,PINV563,103.75
BEIS,ACAS,07/04/2022,PUBLIC TRANSPORT & PARKING,WALES&MID,CORPORATE TRAVEL MANAGEMENTLIMITED,PINV563,386.05
BEIS,ACAS,07/04/2022,PUBLIC TRANSPORT & PARKING,FEP,CORPORATE TRAVEL MANAGEMENTLIMITED,PINV563,136.25
BEIS,ACAS,07/04/2022,PUBLIC TRANSPORT & PARKING,DDAT,CORPORATE TRAVEL MANAGEMENTLIMITED,PINV563,50.65
BEIS,ACAS,07/04/2022,PUBLIC TRANSPORT & PARKING,DELIVERY,CORPORATE TRAVEL MANAGEMENTLIMITED,PINV563,187.15
BEIS,ACAS,07/04/2022,PUBLIC TRANSPORT & PARKING,SOUTH&LONDON,CORPORATE TRAVEL MANAGEMENTLIMITED,PINV563,216.65
BEIS,ACAS,07/04/2022,PUBLIC TRANSPORT & PARKING,CAC,CORPORATE TRAVEL MANAGEMENTLIMITED,PINV563,87.2
BEIS,ACAS,07/04/2022,PUBLIC TRANSPORT & PARKING,STRATEGY,CORPORATE TRAVEL MANAGEMENTLIMITED,PINV563,174.55
BEIS,ACAS,07/04/2022,PUBLIC TRANSPORT & PARKING,NORTH&MID,CORPORATE TRAVEL MANAGEMENTLIMITED,PINV563,21.75
BEIS,ACAS,07/04/2022,PUBLIC TRANSPORT & PARKING,STRATEGY,CORPORATE TRAVEL MANAGEMENTLIMITED,PINV563,126.65
BEIS,ACAS,07/04/2022,PUBLIC TRANSPORT & PARKING,SPPC,CORPORATE TRAVEL MANAGEMENTLIMITED,PINV563,286.65
BEIS,ACAS,07/04/2022,PUBLIC TRANSPORT & PARKING,NORTH&MID,CORPORATE TRAVEL MANAGEMENTLIMITED,PINV563,70.8
BEIS,ACAS,07/04/2022,PUBLIC TRANSPORT & PARKING,ODHR,CORPORATE TRAVEL MANAGEMENTLIMITED,PINV563,86.55
BEIS,ACAS,07/04/2022,PUBLIC TRANSPORT & PARKING,ODHR,CORPORATE TRAVEL MANAGEMENTLIMITED,PINV563,56.85
BEIS,ACAS,07/04/2022,PUBLIC TRANSPORT & PARKING,DELIVERY,CORPORATE TRAVEL MANAGEMENTLIMITED,PINV563,136.75
BEIS,ACAS,07/04/2022,PUBLIC TRANSPORT & PARKING,STRATEGY,CORPORATE TRAVEL MANAGEMENTLIMITED,PINV563,66.35
BEIS,ACAS,07/04/2022,PUBLIC TRANSPORT & PARKING,SPPC,CORPORATE TRAVEL MANAGEMENTLIMITED,PINV563,129.25
BEIS,ACAS,07/04/2022,PUBLIC TRANSPORT & PARKING,SPPC,CORPORATE TRAVEL MANAGEMENTLIMITED,PINV563,68.85
BEIS,ACAS,07/04/2022,PUBLIC TRANSPORT & PARKING,SOUTH&LONDON,CORPORATE TRAVEL MANAGEMENTLIMITED,PINV563,33.65
BEIS,ACAS,07/04/2022,PUBLIC TRANSPORT & PARKING,DDAT,CORPORATE TRAVEL MANAGEMENTLIMITED,PINV563,59.7
BEIS,ACAS,07/04/2022,PUBLIC TRANSPORT & PARKING,FEP,CORPORATE TRAVEL MANAGEMENTLIMITED,PINV563,132.75
BEIS,ACAS,07/04/2022,PUBLIC TRANSPORT & PARKING,NORTH&MID,CORPORATE TRAVEL MANAGEMENTLIMITED,PINV563,24.1
BEIS,ACAS,07/04/2022,PUBLIC TRANSPORT & PARKING,FEP,CORPORATE TRAVEL MANAGEMENTLIMITED,PINV563,242.05
BEIS,ACAS,07/04/2022,PUBLIC TRANSPORT & PARKING,DDAT,CORPORATE TRAVEL MANAGEMENTLIMITED,PINV563,34.4
BEIS,ACAS,07/04/2022,PUBLIC TRANSPORT & PARKING,DDAT,CORPORATE TRAVEL MANAGEMENTLIMITED,PINV563,10.25
BEIS,ACAS,07/04/2022,PUBLIC TRANSPORT & PARKING,DDAT,CORPORATE TRAVEL MANAGEMENTLIMITED,PINV563,25.75
BEIS,ACAS,07/04/2022,PUBLIC TRANSPORT & PARKING,SPPC,CORPORATE TRAVEL MANAGEMENTLIMITED,PINV563,4.85
BEIS,ACAS,07/04/2022,PUBLIC TRANSPORT & PARKING,STRATEGY,CORPORATE TRAVEL MANAGEMENTLIMITED,PINV563,245.05
BEIS,ACAS,07/04/2022,PUBLIC TRANSPORT & PARKING,SPPC,CORPORATE TRAVEL MANAGEMENTLIMITED,PINV563,323.25
BEIS,ACAS,07/04/2022,PUBLIC TRANSPORT & PARKING,SPPC,CORPORATE TRAVEL MANAGEMENTLIMITED,PINV563,149.55
BEIS,ACAS,07/04/2022,PUBLIC TRANSPORT & PARKING,STRATEGY,CORPORATE TRAVEL MANAGEMENTLIMITED,PINV563,76.75
BEIS,ACAS,07/04/2022,PUBLIC TRANSPORT & PARKING,DELIVERY,CORPORATE TRAVEL MANAGEMENTLIMITED,PINV563,57.35
BEIS,ACAS,07/04/2022,PUBLIC TRANSPORT & PARKING,DELIVERY,CORPORATE TRAVEL MANAGEMENTLIMITED,PINV563,57.35
BEIS,ACAS,07/04/2022,PUBLIC TRANSPORT & PARKING,STRATEGY,CORPORATE TRAVEL MANAGEMENTLIMITED,PINV563,208.45
BEIS,ACAS,07/04/2022,PUBLIC TRANSPORT & PARKING,STRATEGY,CORPORATE TRAVEL MANAGEMENTLIMITED,PINV563,201.25
BEIS,ACAS,07/04/2022,PUBLIC TRANSPORT & PARKING,STRATEGY,CORPORATE TRAVEL MANAGEMENTLIMITED,PINV563,14.65
BEIS,ACAS,07/04/2022,PUBLIC TRANSPORT & PARKING,SOUTH&LONDON,CORPORATE TRAVEL MANAGEMENTLIMITED,PINV563,33.65
BEIS,ACAS,07/04/2022,PUBLIC TRANSPORT & PARKING,NORTH&MID,CORPORATE TRAVEL MANAGEMENTLIMITED,PINV563,46.45
BEIS,ACAS,07/04/2022,PUBLIC TRANSPORT & PARKING,STRATEGY,CORPORATE TRAVEL MANAGEMENTLIMITED,PINV563,106.15
BEIS,ACAS,07/04/2022,PUBLIC TRANSPORT & PARKING,SPPC,CORPORATE TRAVEL MANAGEMENTLIMITED,PINV563,177.75
BEIS,ACAS,07/04/2022,PUBLIC TRANSPORT & PARKING,DELIVERY,CORPORATE TRAVEL MANAGEMENTLIMITED,PINV563,133.45
BEIS,ACAS,07/04/2022,PUBLIC TRANSPORT & PARKING,SOUTH&LONDON,CORPORATE TRAVEL MANAGEMENTLIMITED,PINV563,151.55
BEIS,ACAS,07/04/2022,PUBLIC TRANSPORT & PARKING,SPPC,CORPORATE TRAVEL MANAGEMENTLIMITED,PINV563,198.75
BEIS,ACAS,07/04/2022,PUBLIC TRANSPORT & PARKING,SPPC,CORPORATE TRAVEL MANAGEMENTLIMITED,PINV563,149.35
BEIS,ACAS,07/04/2022,PUBLIC TRANSPORT & PARKING,WALES&MID,CORPORATE TRAVEL MANAGEMENTLIMITED,PINV563,117.85
BEIS,ACAS,07/04/2022,PUBLIC TRANSPORT & PARKING,SPPC,CORPORATE TRAVEL MANAGEMENTLIMITED,PINV563,188.95
BEIS,ACAS,07/04/2022,PUBLIC TRANSPORT & PARKING,SOUTH&LONDON,CORPORATE TRAVEL MANAGEMENTLIMITED,PINV563,29.65
BEIS,ACAS,07/04/2022,PUBLIC TRANSPORT & PARKING,STRATEGY,CORPORATE TRAVEL MANAGEMENTLIMITED,PINV563,138.35
BEIS,ACAS,07/04/2022,PUBLIC TRANSPORT & PARKING,SOUTH&LONDON,CORPORATE TRAVEL MANAGEMENTLIMITED,PINV563,19.95
BEIS,ACAS,07/04/2022,PUBLIC TRANSPORT & PARKING,NORTH&MID,CORPORATE TRAVEL MANAGEMENTLIMITED,PINV563,42.45
BEIS,ACAS,07/04/2022,PUBLIC TRANSPORT & PARKING,ODHR,CORPORATE TRAVEL MANAGEMENTLIMITED,PINV563,271.05
BEIS,ACAS,07/04/2022,PUBLIC TRANSPORT & PARKING,NORTH&MID,CORPORATE TRAVEL MANAGEMENTLIMITED,PINV563,17.15
BEIS,ACAS,07/04/2022,PUBLIC TRANSPORT & PARKING,SPPC,CORPORATE TRAVEL MANAGEMENTLIMITED,PINV563,195.25
BEIS,ACAS,07/04/2022,PUBLIC TRANSPORT & PARKING,SPPC,CORPORATE TRAVEL MANAGEMENTLIMITED,PINV563,286.25
BEIS,ACAS,07/04/2022,PUBLIC TRANSPORT & PARKING,ODHR,CORPORATE TRAVEL MANAGEMENTLIMITED,PINV563,224.75
BEIS,ACAS,07/04/2022,PUBLIC TRANSPORT & PARKING,NORTH&MID,CORPORATE TRAVEL MANAGEMENTLIMITED,PINV563,40.06
BEIS,ACAS,07/04/2022,PUBLIC TRANSPORT & PARKING,NORTH&MID,CORPORATE TRAVEL MANAGEMENTLIMITED,PINV563,40.06
BEIS,ACAS,07/04/2022,PUBLIC TRANSPORT & PARKING,NORTH&MID,CORPORATE TRAVEL MANAGEMENTLIMITED,PINV563,40.07
BEIS,ACAS,07/04/2022,PUBLIC TRANSPORT & PARKING,NORTH&MID,CORPORATE TRAVEL MANAGEMENTLIMITED,PINV563,40.06
BEIS,ACAS,07/04/2022,PUBLIC TRANSPORT & PARKING,SOUTH&LONDON,CORPORATE TRAVEL MANAGEMENTLIMITED,PINV563,108.25
BEIS,ACAS,07/04/2022,PUBLIC TRANSPORT & PARKING,CAC,CORPORATE TRAVEL MANAGEMENTLIMITED,PINV563,87.2
BEIS,ACAS,07/04/2022,PUBLIC TRANSPORT & PARKING,SPPC,CORPORATE TRAVEL MANAGEMENTLIMITED,PINV563,188.95
BEIS,ACAS,07/04/2022,PUBLIC TRANSPORT & PARKING,SPPC,CORPORATE TRAVEL MANAGEMENTLIMITED,PINV563,183.75
BEIS,ACAS,07/04/2022,PUBLIC TRANSPORT & PARKING,SPPC,CORPORATE TRAVEL MANAGEMENTLIMITED,PINV563,103.75
BEIS,ACAS,07/04/2022,PUBLIC TRANSPORT & PARKING,SPPC,CORPORATE TRAVEL MANAGEMENTLIMITED,PINV563,91.75
BEIS,ACAS,07/04/2022,PUBLIC TRANSPORT & PARKING,STRATEGY,CORPORATE TRAVEL MANAGEMENTLIMITED,PINV563,98.25
BEIS,ACAS,07/04/2022,PUBLIC TRANSPORT & PARKING,SPPC,CORPORATE TRAVEL MANAGEMENTLIMITED,PINV563,292.25
BEIS,ACAS,07/04/2022,PUBLIC TRANSPORT & PARKING,DDAT,CORPORATE TRAVEL MANAGEMENTLIMITED,PINV563,58.65
BEIS,ACAS,07/04/2022,PUBLIC TRANSPORT & PARKING,STRATEGY,CORPORATE TRAVEL MANAGEMENTLIMITED,PINV563,134.65
BEIS,ACAS,07/04/2022,PUBLIC TRANSPORT & PARKING,DDAT,CORPORATE TRAVEL MANAGEMENTLIMITED,PINV563,12.25
BEIS,ACAS,07/04/2022,PUBLIC TRANSPORT & PARKING,NORTH&MID,CORPORATE TRAVEL MANAGEMENTLIMITED,PINV563,63.15
BEIS,ACAS,07/04/2022,PUBLIC TRANSPORT & PARKING,SOUTH&LONDON,CORPORATE TRAVEL MANAGEMENTLIMITED,PINV563,134.35
BEIS,ACAS,07/04/2022,PUBLIC TRANSPORT & PARKING,WALES&MID,CORPORATE TRAVEL MANAGEMENTLIMITED,PINV563,169.55
BEIS,ACAS,07/04/2022,PUBLIC TRANSPORT & PARKING,SPPC,CORPORATE TRAVEL MANAGEMENTLIMITED,PINV563,177.75
BEIS,ACAS,07/04/2022,PUBLIC TRANSPORT & PARKING,DDAT,CORPORATE TRAVEL MANAGEMENTLIMITED,PINV563,70.45
BEIS,ACAS,07/04/2022,PUBLIC TRANSPORT & PARKING,CAC,CORPORATE TRAVEL MANAGEMENTLIMITED,PINV563,88.15
BEIS,ACAS,07/04/2022,PUBLIC TRANSPORT & PARKING,SPPC,CORPORATE TRAVEL MANAGEMENTLIMITED,PINV563,189
BEIS,ACAS,07/04/2022,PUBLIC TRANSPORT & PARKING,SOUTH&LONDON,CORPORATE TRAVEL MANAGEMENTLIMITED,PINV563,181.25
BEIS,ACAS,07/04/2022,PUBLIC TRANSPORT & PARKING,NORTH&MID,CORPORATE TRAVEL MANAGEMENTLIMITED,PINV563,44.25
BEIS,ACAS,07/04/2022,PUBLIC TRANSPORT & PARKING,DDAT,CORPORATE TRAVEL MANAGEMENTLIMITED,PINV563,39.75
BEIS,ACAS,07/04/2022,PUBLIC TRANSPORT & PARKING,NORTH&MID,CORPORATE TRAVEL MANAGEMENTLIMITED,PINV563,52.9
BEIS,ACAS,07/04/2022,PUBLIC TRANSPORT & PARKING,SOUTH&LONDON,CORPORATE TRAVEL MANAGEMENTLIMITED,PINV563,182.85
BEIS,ACAS,07/04/2022,PUBLIC TRANSPORT & PARKING,NORTH&MID,CORPORATE TRAVEL MANAGEMENTLIMITED,PINV563,42.35
BEIS,ACAS,07/04/2022,PUBLIC TRANSPORT & PARKING,DELIVERY,CORPORATE TRAVEL MANAGEMENTLIMITED,PINV563,16.15
BEIS,ACAS,07/04/2022,PUBLIC TRANSPORT & PARKING,NORTH&MID,CORPORATE TRAVEL MANAGEMENTLIMITED,PINV563,59.3
BEIS,ACAS,07/04/2022,PROFESSIONAL FEES,FEP,GOVERNMENT PROPERTY AGENCY,PINV564,3866.54
BEIS,ACAS,07/04/2022,PROFESSIONAL FEES,FEP,GOVERNMENT PROPERTY AGENCY,PINV565,5061
BEIS,ACAS,07/04/2022,RATES,FEP,GOVERNMENT PROPERTY AGENCY,PINV565,6534.03
BEIS,ACAS,07/04/2022,RENTS,FEP,GOVERNMENT PROPERTY AGENCY,PINV565,67957.2
BEIS,ACAS,07/04/2022,MAINTENANCE (TFM2),FEP,GOVERNMENT PROPERTY AGENCY,PINV566,251.95
BEIS,ACAS,06/04/2022,OTHER RESEARCH,STRATEGY,INVOLVEMENT AND PARTICIPATION,PINV567,3000
BEIS,ACAS,01/04/2022,PUBLICITY,STRATEGY,CISION,PINV569,2670
BEIS,ACAS,07/04/2022,MANAGED SERVICE Off-PAYROLL WK,FEP,MHR INTERNATIONAL UK LTD,PINV570,1080
BEIS,ACAS,01/04/2022,CONTRACTOR OFF-PAYROLL IN IR35,DELIVERY,ALEXANDER MANN SOLUTIONS LTD,PINV573,28633.08
BEIS,ACAS,08/04/2022,VENUE HIRE (REC VAT),CAC,CALDER CONFERENCES LTD,PINV576,18
BEIS,ACAS,08/04/2022,VENUE HIRE (REC VAT),CAC,CALDER CONFERENCES LTD,PINV576,960
BEIS,ACAS,08/04/2022,VENUE HIRE (REC VAT),CAC,CALDER CONFERENCES LTD,PINV576,250
BEIS,ACAS,08/04/2022,VENUE HIRE (REC VAT),CAC,CALDER CONFERENCES LTD,PINV576,16.8
BEIS,ACAS,08/04/2022,VENUE HIRE (REC VAT),CAC,CALDER CONFERENCES LTD,PINV576,45.6
BEIS,ACAS,08/04/2022,VENUE HIRE (REC VAT),CAC,CALDER CONFERENCES LTD,PINV576,6
BEIS,ACAS,08/04/2022,VENUE HIRE (REC VAT),SOUTH&LONDON,CALDER CONFERENCES LTD,PINV576,432
BEIS,ACAS,08/04/2022,VENUE HIRE (REC VAT),SOUTH&LONDON,CALDER CONFERENCES LTD,PINV576,320
BEIS,ACAS,06/04/2022,CONTRACTOR OFF-PAYROLL IN IR35,ODHR,HAYS RECRUITMENT,PINV577,2127.65
BEIS,ACAS,06/04/2022,CONTRACTOR OFF-PAYROLL IN IR35,ODHR,HAYS RECRUITMENT,PINV577,531.91
BEIS,ACAS,06/04/2022,CONTRACTOR OFF-PAYROLL IN IR35,ODHR,HAYS RECRUITMENT,PINV578,1595.74
BEIS,ACAS,06/04/2022,CONTRACTOR OFF-PAYROLL IN IR35,ODHR,HAYS RECRUITMENT,PINV578,531.91
BEIS,ACAS,07/04/2022,AGENCY STAFF,NORTH&MID,ALEXANDER MANN SOLUTIONS LTD,PINV579,104.54
BEIS,ACAS,07/04/2022,AGENCY STAFF,NORTH&MID,ALEXANDER MANN SOLUTIONS LTD,PINV579,313.64
BEIS,ACAS,01/04/2022,PROFESSIONAL FEES,FEP,GOVERNMENT PROPERTY AGENCY,PINV582,6921.86
BEIS,ACAS,01/04/2022,RATES,FEP,GOVERNMENT PROPERTY AGENCY,PINV582,50707.5
BEIS,ACAS,01/04/2022,RENTS,FEP,GOVERNMENT PROPERTY AGENCY,PINV582,112493.53
BEIS,ACAS,01/04/2022,RENTS,FEP,GOVERNMENT PROPERTY AGENCY,PINV582,-12067.05
BEIS,ACAS,01/04/2022,SERVICE CHARGES,FEP,GOVERNMENT PROPERTY AGENCY,PINV582,60032.5
BEIS,ACAS,04/04/2022,PROFESSIONAL FEES,FEP,GOVERNMENT PROPERTY AGENCY,PINV583,4353
BEIS,ACAS,04/04/2022,SERVICE CHARGES,FEP,GOVERNMENT PROPERTY AGENCY,PINV583,15483.75
BEIS,ACAS,04/04/2022,RATES,FEP,GOVERNMENT PROPERTY AGENCY,PINV583,2875
BEIS,ACAS,04/04/2022,Lease Liability,FEP,GOVERNMENT PROPERTY AGENCY,PINV583,9634.5
BEIS,ACAS,04/04/2022,PROFESSIONAL FEES,FEP,GOVERNMENT PROPERTY AGENCY,PINV584,4353
BEIS,ACAS,04/04/2022,PROFESSIONAL FEES,FEP,GOVERNMENT PROPERTY AGENCY,PINV585,2545.78
BEIS,ACAS,04/04/2022,SERVICE CHARGES,FEP,GOVERNMENT PROPERTY AGENCY,PINV585,253.38
BEIS,ACAS,04/04/2022,FACILITIES MANAGEMENT,FEP,GOVERNMENT PROPERTY AGENCY,PINV585,1937.6
BEIS,ACAS,04/04/2022,RATES,FEP,GOVERNMENT PROPERTY AGENCY,PINV585,1332.79
BEIS,ACAS,04/04/2022,Lease Liability,FEP,GOVERNMENT PROPERTY AGENCY,PINV585,4427
BEIS,ACAS,04/04/2022,PROFESSIONAL FEES,FEP,GOVERNMENT PROPERTY AGENCY,PINV586,4353
BEIS,ACAS,04/04/2022,SERVICE CHARGES,FEP,GOVERNMENT PROPERTY AGENCY,PINV586,2793
BEIS,ACAS,04/04/2022,RATES,FEP,GOVERNMENT PROPERTY AGENCY,PINV586,7630.54
BEIS,ACAS,04/04/2022,Lease Liability,FEP,GOVERNMENT PROPERTY AGENCY,PINV586,11012.75
BEIS,ACAS,01/04/2022,Lease Liability,FEP,GOVERNMENT PROPERTY AGENCY,PINV587,90410.96
BEIS,ACAS,01/04/2022,CAR PARK RENTS,FEP,GOVERNMENT PROPERTY AGENCY,PINV587,1808.22
BEIS,ACAS,01/04/2022,PUBLICATIONS AND PERIODICALS,STRATEGY,LNRS DATA SERVICES LTD,PINV588,29764.2
BEIS,ACAS,01/04/2022,STAFF RECRUITMENT COSTS,STRATEGY,HAYMARKET MEDIA GROUP LIMITED,PINV590,1380
BEIS,ACAS,01/04/2022,PROFESSIONAL FEES,STRATEGY,THE DRAFT WRITER LTD,PINV591,3360
BEIS,ACAS,07/04/2022,PROFESSIONAL FEES,FEP,GOVERNMENT PROPERTY AGENCY,PINV592,8469.42
BEIS,ACAS,07/04/2022,SERVICE CHARGES,FEP,GOVERNMENT PROPERTY AGENCY,PINV592,31058.04
BEIS,ACAS,07/04/2022,FACILITIES MANAGEMENT,FEP,GOVERNMENT PROPERTY AGENCY,PINV592,41995.18
BEIS,ACAS,07/04/2022,RATES,FEP,GOVERNMENT PROPERTY AGENCY,PINV592,29056
BEIS,ACAS,07/04/2022,Lease Liability,FEP,GOVERNMENT PROPERTY AGENCY,PINV592,107421.3
BEIS,ACAS,07/04/2022,Lease Liability,FEP,GOVERNMENT PROPERTY AGENCY,PINV593,83941.64
BEIS,ACAS,08/04/2022,PROFESSIONAL FEES,FEP,GOVERNMENT PROPERTY AGENCY,PINV595,5268.62
BEIS,ACAS,08/04/2022,SERVICE CHARGES,FEP,GOVERNMENT PROPERTY AGENCY,PINV595,2634.5
BEIS,ACAS,08/04/2022,FACILITIES MANAGEMENT,FEP,GOVERNMENT PROPERTY AGENCY,PINV595,9649.2
BEIS,ACAS,08/04/2022,RATES,FEP,GOVERNMENT PROPERTY AGENCY,PINV595,7365.75
BEIS,ACAS,08/04/2022,Lease Liability,FEP,GOVERNMENT PROPERTY AGENCY,PINV595,46431.23
BEIS,ACAS,01/04/2022,TELEPHONES,DDAT,GTT,PINV597,2437.51
BEIS,ACAS,01/04/2022,TELEPHONES,DDAT,GTT,PINV597,270.84
BEIS,ACAS,12/04/2022,CONTRACTOR OFF-PAYROLL IN IR35,ODHR,HAYS RECRUITMENT,PINV598,2068.27
BEIS,ACAS,12/04/2022,CONTRACTOR OFF-PAYROLL IN IR35,ODHR,HAYS RECRUITMENT,PINV599,1551.2
BEIS,ACAS,12/04/2022,CONTRACTOR OFF-PAYROLL IN IR35,ODHR,HAYS RECRUITMENT,PINV600,2068.27
BEIS,ACAS,12/04/2022,CONTRACTOR OFF-PAYROLL IN IR35,ODHR,HAYS RECRUITMENT,PINV601,2585.34
BEIS,ACAS,13/04/2022,PUBLICITY,STRATEGY,FRONTIFY,PINV602,2568.44
BEIS,ACAS,09/04/2022,MOBILE PHONES,DDAT,TELEFONICA UK LTD (O2),PINV603,5150.46
BEIS,ACAS,09/04/2022,MOBILE PHONES,DDAT,TELEFONICA UK LTD (O2),PINV603,572.27
BEIS,ACAS,12/04/2022,MEMBERSHIP FEES,SPPC,PUBLIC CHAIR S FORUM,PINV604,1000
BEIS,ACAS,01/04/2022,TELEPHONES,DDAT,CENTURYLINK COMMUNICATIONS UK LIMITED,PINV605,4355.06
BEIS,ACAS,01/04/2022,TELEPHONES,DDAT,CENTURYLINK COMMUNICATIONS UK LIMITED,PINV605,483.9
BEIS,ACAS,01/04/2022,TELEPHONES,DDAT,CENTURYLINK COMMUNICATIONS UK LIMITED,PINV605,4386.47
BEIS,ACAS,01/04/2022,TELEPHONES,DDAT,CENTURYLINK COMMUNICATIONS UK LIMITED,PINV605,487.38
BEIS,ACAS,01/04/2022,SOFTWARE & LICENCES,DDAT,CENTURYLINK COMMUNICATIONS UK LIMITED,PINV605,13173.84
BEIS,ACAS,01/04/2022,SOFTWARE & LICENCES,DDAT,CENTURYLINK COMMUNICATIONS UK LIMITED,PINV605,1463.76
BEIS,ACAS,01/04/2022,SOFTWARE & LICENCES,DDAT,CENTURYLINK COMMUNICATIONS UK LIMITED,PINV605,1317.38
BEIS,ACAS,01/04/2022,SOFTWARE & LICENCES,DDAT,CENTURYLINK COMMUNICATIONS UK LIMITED,PINV605,146.38
BEIS,ACAS,01/04/2022,SOFTWARE & LICENCES,DDAT,CENTURYLINK COMMUNICATIONS UK LIMITED,PINV605,322.76
BEIS,ACAS,01/04/2022,SOFTWARE & LICENCES,DDAT,CENTURYLINK COMMUNICATIONS UK LIMITED,PINV605,35.87
BEIS,ACAS,01/04/2022,PROFESSIONAL FEES,DDAT,CENTURYLINK COMMUNICATIONS UK LIMITED,PINV605,9788.89
BEIS,ACAS,14/04/2022,VENUE HIRE (REC VAT),SOUTH&LONDON,CALDER CONFERENCES LTD,PINV606,432
BEIS,ACAS,14/04/2022,AGENCY STAFF,WALES&MID,BROOK STREET UK LTD,PINV615,316.52
BEIS,ACAS,14/04/2022,AGENCY STAFF,WALES&MID,BROOK STREET UK LTD,PINV618,376.42
BEIS,ACAS,06/04/2022,GRADE 8 SALARIES,STRATEGY,HOUSE OF COMMONS,PINV619,13833.58
BEIS,ACAS,06/04/2022,GRADE 8 SUPERANNUATION,STRATEGY,HOUSE OF COMMONS,PINV619,3463.93
BEIS,ACAS,19/04/2022,PUBLICITY,NORTH&MID,KEMPS PUBLISHING LTD,PINV620,780
BEIS,ACAS,19/04/2022,RENTS,FEP,GOVERNMENT PROPERTY AGENCY,PINV621,22270.2
BEIS,ACAS,19/04/2022,RATES,FEP,GOVERNMENT PROPERTY AGENCY,PINV622,2178.01
BEIS,ACAS,19/04/2022,Lease Liability,FEP,GOVERNMENT PROPERTY AGENCY,PINV622,22652.4
BEIS,ACAS,04/04/2022,RATES,FEP,GOVERNMENT PROPERTY AGENCY,PINV623,2178.01
BEIS,ACAS,04/04/2022,RENTS,FEP,GOVERNMENT PROPERTY AGENCY,PINV623,22652.4
BEIS,ACAS,07/04/2022,OCCUPATIONAL HEALTH SERVICE,ODHR,HEALTH MANAGEMENT LTD,PINV625,2544
BEIS,ACAS,07/04/2022,OCCUPATIONAL HEALTH SERVICE,ODHR,HEALTH MANAGEMENT LTD,PINV626,2820
BEIS,ACAS,20/04/2022,RATES,FEP,GOVERNMENT PROPERTY AGENCY,PINV627,2357.89
BEIS,ACAS,20/04/2022,RATES,FEP,GOVERNMENT PROPERTY AGENCY,PINV627,30459.93
BEIS,ACAS,20/04/2022,RATES,FEP,GOVERNMENT PROPERTY AGENCY,PINV627,17889.17
BEIS,ACAS,20/04/2022,SERVICE CHARGES,FEP,GOVERNMENT PROPERTY AGENCY,PINV627,2791.56
BEIS,ACAS,20/04/2022,SERVICE CHARGES,FEP,GOVERNMENT PROPERTY AGENCY,PINV627,36062.11
BEIS,ACAS,20/04/2022,SERVICE CHARGES,FEP,GOVERNMENT PROPERTY AGENCY,PINV627,21179.33
BEIS,ACAS,20/04/2022,FACILITIES MANAGEMENT,FEP,GOVERNMENT PROPERTY AGENCY,PINV627,19.81
BEIS,ACAS,20/04/2022,FACILITIES MANAGEMENT,FEP,GOVERNMENT PROPERTY AGENCY,PINV627,255.9
BEIS,ACAS,20/04/2022,FACILITIES MANAGEMENT,FEP,GOVERNMENT PROPERTY AGENCY,PINV627,150.29
BEIS,ACAS,20/04/2022,PROFESSIONAL FEES,FEP,GOVERNMENT PROPERTY AGENCY,PINV627,302.1
BEIS,ACAS,20/04/2022,PROFESSIONAL FEES,FEP,GOVERNMENT PROPERTY AGENCY,PINV627,6194.7
BEIS,ACAS,20/04/2022,SERVICE CHARGES,FEP,GOVERNMENT PROPERTY AGENCY,PINV627,-561.12
BEIS,ACAS,20/04/2022,SERVICE CHARGES,FEP,GOVERNMENT PROPERTY AGENCY,PINV627,-7248.73
BEIS,ACAS,20/04/2022,SERVICE CHARGES,FEP,GOVERNMENT PROPERTY AGENCY,PINV627,-4257.19
BEIS,ACAS,20/04/2022,Lease Liability,FEP,GOVERNMENT PROPERTY AGENCY,PINV627,5230.99
BEIS,ACAS,20/04/2022,Lease Liability,FEP,GOVERNMENT PROPERTY AGENCY,PINV627,67575.44
BEIS,ACAS,20/04/2022,Lease Liability,FEP,GOVERNMENT PROPERTY AGENCY,PINV627,39687.16
BEIS,ACAS,10/04/2022,GOVT SOLICITORS FEES,DELIVERY,GOVERNMENT LEGAL DEPARTMENT,PINV629,1782.84
BEIS,ACAS,10/04/2022,GOVT SOLICITORS FEES,ODHR,GOVERNMENT LEGAL DEPARTMENT,PINV629,22398.18
BEIS,ACAS,01/04/2022,SOFTWARE & LICENCES,DDAT,INSIGHT DIRECT (UK) LTD,PINV632,1546.73
BEIS,ACAS,01/04/2022,SOFTWARE & LICENCES,DDAT,INSIGHT DIRECT (UK) LTD,PINV632,171.86
BEIS,ACAS,05/04/2022,REFUNDS,SOUTH&LONDON,SAFELANE GLOBAL LTD,PINV633,255
BEIS,ACAS,22/04/2022,VENUE HIRE (REC VAT),SOUTH&LONDON,CALDER CONFERENCES LTD,PINV635,490
BEIS,ACAS,21/04/2022,AGENCY STAFF,SPPC,ALEXANDER MANN SOLUTIONS LTD,PINV636,1463
BEIS,ACAS,14/04/2022,RECOGNITION PAYMENTS,CENTRE,EDENRED (UK GROUP ) LTD,PINV637,17850
BEIS,ACAS,24/04/2022,HIRE CAR COSTS,SOUTH&LONDON,ENTERPRISE RENT-A-CAR,PINV638,179.33
BEIS,ACAS,24/04/2022,HIRE CAR COSTS,SOUTH&LONDON,ENTERPRISE RENT-A-CAR,PINV638,98.12
BEIS,ACAS,24/04/2022,HIRE CAR COSTS,ODHR,ENTERPRISE RENT-A-CAR,PINV638,83.5
BEIS,ACAS,24/04/2022,HIRE CAR COSTS,SOUTH&LONDON,ENTERPRISE RENT-A-CAR,PINV638,119.51
BEIS,ACAS,24/04/2022,HIRE CAR COSTS,SOUTH&LONDON,ENTERPRISE RENT-A-CAR,PINV638,61.55
BEIS,ACAS,24/04/2022,HIRE CAR COSTS,SOUTH&LONDON,ENTERPRISE RENT-A-CAR,PINV638,77.15
BEIS,ACAS,24/04/2022,HIRE CAR COSTS,SOUTH&LONDON,ENTERPRISE RENT-A-CAR,PINV638,105.79
BEIS,ACAS,24/04/2022,HIRE CAR PETROL,SOUTH&LONDON,ENTERPRISE RENT-A-CAR,PINV638,32.19
BEIS,ACAS,14/04/2022,AGENCY STAFF,NORTH&MID,ALEXANDER MANN SOLUTIONS LTD,PINV639,514.01
BEIS,ACAS,14/04/2022,AGENCY STAFF,NORTH&MID,ALEXANDER MANN SOLUTIONS LTD,PINV640,522.72
BEIS,ACAS,21/04/2022,AGENCY STAFF,NORTH&MID,ALEXANDER MANN SOLUTIONS LTD,PINV641,522.72
BEIS,ACAS,21/04/2022,AGENCY STAFF,NORTH&MID,ALEXANDER MANN SOLUTIONS LTD,PINV643,418.18
BEIS,ACAS,27/04/2022,EXHIBITION COSTS,STRATEGY,CADMIUM EVENTS LTD,PINV645,660
BEIS,ACAS,24/04/2022,TELEPHONES,DDAT,CENTURYLINK COMMUNICATIONS UK LIMITED,PINV646,1123.68
BEIS,ACAS,12/04/2022,CONTRACTOR OFF-PAYROLL IN IR35,ODHR,HAYS RECRUITMENT,PINV648,2127.65
BEIS,ACAS,12/04/2022,CONTRACTOR OFF-PAYROLL IN IR35,ODHR,HAYS RECRUITMENT,PINV649,2127.65
BEIS,ACAS,04/04/2022,SOFTWARE & LICENCES,DELIVERY,ZOOM VIDEO COMMUNICATIONS INC,PINV650,82.74
BEIS,ACAS,04/04/2022,SOFTWARE & LICENCES,DELIVERY,ZOOM VIDEO COMMUNICATIONS INC,PINV650,151.69
BEIS,ACAS,04/04/2022,SOFTWARE & LICENCES,ODHR,ZOOM VIDEO COMMUNICATIONS INC,PINV650,27.58
BEIS,ACAS,04/04/2022,SOFTWARE & LICENCES,DELIVERY,ZOOM VIDEO COMMUNICATIONS INC,PINV650,137.9
BEIS,ACAS,04/04/2022,SOFTWARE & LICENCES,DELIVERY,ZOOM VIDEO COMMUNICATIONS INC,PINV650,13.79
BEIS,ACAS,04/04/2022,SOFTWARE & LICENCES,SCOTLAND,ZOOM VIDEO COMMUNICATIONS INC,PINV650,110.32
BEIS,ACAS,04/04/2022,SOFTWARE & LICENCES,NORTH&MID,ZOOM VIDEO COMMUNICATIONS INC,PINV650,68.95
BEIS,ACAS,04/04/2022,SOFTWARE & LICENCES,NORTH&MID,ZOOM VIDEO COMMUNICATIONS INC,PINV650,124.11
BEIS,ACAS,04/04/2022,SOFTWARE & LICENCES,NORTH&MID,ZOOM VIDEO COMMUNICATIONS INC,PINV650,124.11
BEIS,ACAS,04/04/2022,SOFTWARE & LICENCES,NORTH&MID,ZOOM VIDEO COMMUNICATIONS INC,PINV650,96.52
BEIS,ACAS,04/04/2022,SOFTWARE & LICENCES,WALES&MID,ZOOM VIDEO COMMUNICATIONS INC,PINV650,151.69
BEIS,ACAS,04/04/2022,SOFTWARE & LICENCES,WALES&MID,ZOOM VIDEO COMMUNICATIONS INC,PINV650,110.32
BEIS,ACAS,04/04/2022,SOFTWARE & LICENCES,SOUTH&LONDON,ZOOM VIDEO COMMUNICATIONS INC,PINV650,96.52
BEIS,ACAS,04/04/2022,SOFTWARE & LICENCES,SOUTH&LONDON,ZOOM VIDEO COMMUNICATIONS INC,PINV650,151.69
BEIS,ACAS,04/04/2022,SOFTWARE & LICENCES,SOUTH&LONDON,ZOOM VIDEO COMMUNICATIONS INC,PINV650,124.11
BEIS,ACAS,04/04/2022,SOFTWARE & LICENCES,SOUTH&LONDON,ZOOM VIDEO COMMUNICATIONS INC,PINV650,96.52
BEIS,ACAS,04/04/2022,SOFTWARE & LICENCES,NORTH&MID,ZOOM VIDEO COMMUNICATIONS INC,PINV650,13.79
BEIS,ACAS,20/04/2022,CONTRACTOR OFF-PAYROLL IN IR35,ODHR,HAYS RECRUITMENT,PINV651,531.91
BEIS,ACAS,14/04/2022,AGENCY STAFF,SPPC,ALEXANDER MANN SOLUTIONS LTD,PINV652,708.62
BEIS,ACAS,12/04/2022,CONTRACTOR OFF-PAYROLL IN IR35,ODHR,HAYS RECRUITMENT,PINV653,2659.56
BEIS,ACAS,31/03/2022,AGENCY STAFF,NORTH&MID,ALEXANDER MANN SOLUTIONS LTD,PINV654,372.06
BEIS,ACAS,28/04/2022,AGENCY STAFF,NORTH&MID,ALEXANDER MANN SOLUTIONS LTD,PINV655,514.01
BEIS,ACAS,28/04/2022,AGENCY STAFF,NORTH&MID,ALEXANDER MANN SOLUTIONS LTD,PINV656,418.18
BEIS,ACAS,27/04/2022,CONTRACTOR OFF-PAYROLL IN IR35,ODHR,HAYS RECRUITMENT,PINV657,1595.74
BEIS,ACAS,26/04/2022,PUBLICITY,SCOTLAND,SCOTTISH FEDERATION OF HOUSING ASSOCIATI,PINV658,598.8
